Workbook

Sheet Chiffrage au 03-fev-2025
B2: M1 | C2: M2 | D2: M3 | E2: Durée JH | F2: Durée x Cout JH | H2: Cout JH
A3: DEV1 | B3: 19 | C3: 20 | D3: 20 | E3: =SUM(B3:D3) -> 59 | F3: =E3*$H$3 -> 19470 | H3: 330
A4: DEV2 | B4: 0 | C4: 20 | D4: 20 | E4: =SUM(B4:D4) -> 40 | F4: =E4*$H$3 -> 13200
D5: Durée Total | E5: =SUM(E3:E4) -> 99
E6: Cout en JH | F6: =SUM(F3:F4) -> 32670
F7: =F6*(1+G7) -> 34303.5 | G7: 0.05 | H7: contingence
E8: Cout interne | F8: =F7*(1+G8) -> 38419.92 | G8: 0.12 | H8: garantie
E9: Prix client | F9: =F8/(1-G9) -> 54885.6 | G9: 0.3 | H9: marge
N11: valeur du point de ffficulté en h

Sheet itération 1
H1: =20*8 -> 160
B2: Rubrique | C2: fonction | D2: difficulté | E2: somme cout | H2: cout difficulté en heure
B3: gestion utilisateur | C3: userstate | D3: 8 | E3: =D3*$H$3 -> 12 | H3: 1.5
C4: user | D4: 11 | E4: =D4*$H$3 -> 16.5 | F4: =SUM(E3:E4) -> 28.5 | H4: 1.2
C5: inscription | D5: 4 | E5: 6
C6: abonnement | D6: 5 | E6: 7.5
C7: suspension de compte | D7: 8 | E7: 12 | H7: prix dev
C8: audit compte administrateur | D8: 5 | E8: 7.5 | H8: 330
C9: compte maitre | D9: 8 | E9: 12
C10: page utilisateur | D10: 6 | E10: 9
B11: Total utilisateur | E11: =SUM(E3:E10) -> 82.5 | F11: =E11*$H$8 -> 27225
B12: gestion message | C12: page message | D12: 24 | E12: 36
B13: fil de message | C13: message | D13: 3 | E13: 4.5
C14: message decorator | D14: 1 | E14: 1.5
C15: message thread | D15: 3 | E15: 4.5
C16: image message | D16: 3 | E16: 4.5
C17: text message | D17: 3 | E17: 4.5
C18: admin message decorator | D18: 3 | E18: 4.5
B19: page utilisateur | C19: opérations utilisateur | D19: 8 | E19: 12
B20: page administrateur | C20: opérations administrateur | D20: 4 | E20: 6
C21: notifications | D21: 7 | E21: =D21*$H$3 -> 10.5
B22: Total message | E22: =SUM(E12:E21) -> 88.5 | F22: =E22*$H$8 -> 29205
B23: Grand Total | E23: =SUM(E11,E22) -> 171 | F23: =E23*$H$8 -> 56430
B25: Recette | C25: 6 fonctions à valider avec le client | D25: 6 | E25: =D25*H4 -> 7.2 | F25: =E25*$H$8 -> 2376
E27: Contingence | F27: =F23*G27 -> 2821.5 | G27: 0.05
E28: Marge | F28: =F23*G28 -> 16929 | G28: 0.3
E29: Garantie | F29: =F23*G29 -> 6771.6 | G29: 0.12
E30: Prix | F30: =SUM(F25,F27,F28,F29,F23) -> 85328.1
